fUSD/lending_fUSD_20250606
["ID","MTS","AMOUNT","RATE_DAILY","PERIOD"]
[364645995,1749177045787,-1111.96,0.00030164,7]
[364645996,1749177045796,-480.0,0.00030164,7]
[364645998,1749177045805,-1117.64,0.00030164,7]
[364646000,1749177045814,-480.0,0.00030164,2]
[364646002,1749177045824,-514.27684964,0.00030164,7]
[364646003,1749177045834,-855.26,0.00030164,7]
[364646004,1749177045844,-979.85,0.00030164,7]
[364646005,1749177045854,-750.42,0.00030164,7]
[364646006,1749177045863,-460.0,0.00030164,7]
[364646007,1749177045872,-1275.38,0.00030164,7]
[364646008,1749177045882,-495.69808297,0.00030164,7]
[364646009,1749177045891,-495.9339049,0.00030164,7]
[364646010,1749177045900,-480.0,0.00030164,7]
[364646012,1749177045909,-1203.48,0.00030164,7]
[364646014,1749177045919,-785.84,0.00030164,7]
[364646015,1749177045928,-488.57553195,0.00030164,7]
[364646016,1749177045939,-407.81034783,0.00030164,7]
[364646017,1749177045948,-859.23,0.00030164,7]
[364646018,1749177045957,-435.33724983,0.00030164,7]
[364646019,1749177045966,-483.31,0.00030164,2]
[364646020,1749177045976,-1062.06,0.00030164,7]
[364646021,1749177045985,-542.76422742,0.00030164,7]
[364646022,1749177045996,-72718.86,0.00030164,7]
[364646023,1749177046008,-250.00085726,0.00030164,7]
[364646024,1749177046017,-723.74,0.00030164,7]
[364646025,1749177046027,-480.0,0.00030164,7]
[364646026,1749177046036,-480.0,0.00030164,7]
[364646027,1749177046046,-3295.31,0.00030164,7]
[364646028,1749177046056,-6441.27,0.00030164,7]
[364646029,1749177046067,-602.88,0.00030164,7]
[364646030,1749177046077,-480.0,0.00030164,7]
[364646031,1749177046086,-820.2,0.00030164,7]
[364646032,1749177046095,-3698.66,0.00030164,7]
[364646033,1749177046105,-480.0,0.00030164,7]
[364646034,1749177046114,-494.82434166,0.00030164,7]
[364646035,1749177046123,-1146.54,0.00030164,7]
[364646036,1749177046134,-903.36,0.00030164,7]
[364646037,1749177046143,-480.0,0.00030164,7]
[364646038,1749177046224,-415.27438889,0.00030164,7]
[364646039,1749177046236,-480.0,0.00030164,7]
[364646040,1749177046245,-639.53,0.00030164,7]
[364646041,1749177046254,-480.0,0.00030164,7]
[364646042,1749177046264,-2095.32,0.00030164,7]
[364646043,1749177046273,-721.36,0.00030164,7]
[364646044,1749177046284,-856.89553576,0.00030164,2]
[364646045,1749177046293,-1582.85,0.00030164,7]
[364646046,1749177046302,-480.0,0.00030164,7]
[364646047,1749177046312,-500.0,0.00030164,7]
[364646048,1749177046321,-700.0,0.00030164,7]
[364646049,1749177046330,-262.06801087,0.00030164,2]
[364646050,1749177046340,-511.39906616,0.00030173,5]
[364646051,1749177046349,-500.0,0.00030173,5]
[364646052,1749177046358,-500.0,0.00030173,5]
[364646053,1749177046368,-500.0,0.00030173,5]
[364646054,1749177046377,-500.0,0.00030173,5]
[364646055,1749177046387,-150.0,0.00030174,2]
[364646056,1749177046396,-150.0,0.00030174,2]
[364646057,1749177046406,-5034.43505225,0.0003018,2]
[364646058,1749177046415,-150.0,0.00030185,2]
[364646059,1749177046424,-379.01,0.000302,2]
[364646060,1749177046434,-215.667741,0.000302,7]
[364646061,1749177046443,-215.667741,0.000302,7]
[364646062,1749177046453,-389.471392,0.000302,7]
[364646063,1749177046462,-151.0,0.000302,7]
[364646064,1749177046471,-161.577772,0.000302,7]
[364646065,1749177046481,-161.577772,0.000302,7]
[364646066,1749177046490,-151.0,0.000302,7]
[364646067,1749177046499,-151.0,0.000302,7]
[364646068,1749177046509,-151.0,0.000302,7]
[364646069,1749177046518,-459.7,0.00030201,2]
[364646070,1749177046528,-378.43667934,0.00030202,2]
[364646072,1749177046537,-647.35889616,0.00030208,2]
[364646073,1749177046547,-191.91003156,0.00030209,2]
[364646075,1749177046556,-345.86987957,0.0003021,2]
[364646077,1749177046566,-150.0,0.00030229,2]
[364646078,1749177046575,-150.0,0.00030259,2]
[364646079,1749177046586,-378.43667934,0.00030276,2]
[364646080,1749177046597,-345.86987957,0.00030283,2]
[364646081,1749177046607,-15262.970499,0.00030288,2]
[364646082,1749177046616,-526.38461609,0.00030288,2]
[364646083,1749177046662,-14576.92054071,0.00030288,2]
[364646084,1749177046672,-15262.970499,0.00030289,2]
[364646085,1749177046682,-2924.21097318,0.00030289,2]
[364646086,1749177047627,-585.38,0.00030164,7]
[364646087,1749177047636,-481.92198637,0.00030164,7]
[364646088,1749177047646,-480.0,0.00030164,7]
[364646089,1749177047655,-17213.52923582,0.00030289,2]
[364646090,1749177047665,-15262.970499,0.0003029,2]
[364646091,1749177047674,-5034.43505225,0.00030291,2]
[364646092,1749177047682,-30525.9409979,0.00030298,2]
[364646093,1749177047691,-35241.0453657,0.00030298,2]
[364646094,1749177047700,-5034.43505225,0.00030299,2]
[364646095,1749177047715,-1569.41,0.000303,2]
[364646096,1749177047724,-379.01,0.000303,2]
[364646097,1749177047734,-379.01,0.000303,2]
[364646098,1749177047744,-379.01,0.000303,2]
[364646099,1749177047754,-5034.43505225,0.00030307,2]
[364646100,1749177047763,-572.61,0.00030307,7]
[364646101,1749177047772,-500.0,0.00030307,7]
[364646102,1749177047782,-1219.0,0.00030307,5]
[364646103,1749177047791,-40275.480418,0.00030308,2]
[364646104,1749177047801,-20137.740209,0.00030309,2]
[364646105,1749177047811,-150.0,0.00030314,2]
[364646106,1749177047822,-150.0,0.00030316,2]
[364646107,1749177047832,-500.0,0.00030317,2]
[364646108,1749177047843,-500.0,0.00030317,2]
[364646109,1749177047854,-572.61,0.00030317,7]
[364646110,1749177047865,-500.0,0.00030317,7]
[364646111,1749177047874,-5034.43505225,0.00030317,2]
[364646112,1749177047884,-25172.1752612,0.00030318,2]
[364646113,1749177047894,-40852.65178111,0.00030319,2]
[364646114,1749177047906,-500.0,0.00030327,2]
[364646115,1749177047917,-150.0,0.00030327,2]
[364646116,1749177047927,-500.0,0.00030327,2]
[364646117,1749177047935,-500.0,0.00030327,2]
[364646118,1749177047945,-500.0,0.00030327,2]
[364646119,1749177047954,-572.61,0.00030327,7]
[364646120,1749177047964,-572.61,0.00030327,7]
[364646121,1749177047973,-572.61,0.00030327,7]
[364646122,1749177047983,-500.0,0.00030327,7]
[364646123,1749177047992,-500.0,0.00030327,7]
[364646124,1749177048001,-500.0,0.00030327,7]
[364646125,1749177048010,-160.54,0.00030328,2]
[364646126,1749177048020,-151.0,0.00030328,7]
[364646127,1749177048029,-151.0,0.00030328,7]
[364646128,1749177048039,-152.054154,0.00030328,7]
[364646129,1749177048048,-152.054154,0.00030328,7]
[364646130,1749177048057,-152.054154,0.00030328,7]
[364646131,1749177048066,-152.054154,0.00030328,7]
[364646132,1749177048075,-151.0,0.00030328,7]
[364646133,1749177048084,-151.0,0.00030328,7]
[364646134,1749177048094,-151.0,0.00030328,7]
[364646135,1749177048104,-151.0,0.00030328,7]
[364646136,1749177048114,-151.0,0.00030328,7]
[364646137,1749177048123,-151.0,0.00030328,7]
[364646138,1749177048132,-450.0,0.00030328,2]
[364646139,1749177048141,-450.0,0.00030328,2]
[364646140,1749177048151,-400.398277,0.00030328,2]
[364646141,1749177048161,-151.0,0.00030328,7]
[364646142,1749177048170,-151.0,0.00030328,7]
[364646143,1749177048180,-265.127388,0.00030328,7]
[364646144,1749177048190,-265.127388,0.00030328,7]
[364646145,1749177048199,-265.127388,0.00030328,7]
[364646146,1749177048209,-265.127388,0.00030328,7]
[364646147,1749177048219,-151.0,0.00030328,7]
[364646148,1749177048228,-151.0,0.00030328,7]
[364646149,1749177048238,-202.923419,0.00030328,7]
[364646150,1749177048248,-151.0,0.00030328,7]
[364646151,1749177048258,-151.0,0.00030328,7]
[364646152,1749177048267,-151.0,0.00030328,7]
[364646153,1749177048277,-151.0,0.00030328,7]
[364646154,1749177048288,-151.0,0.00030328,7]
[364646155,1749177048298,-151.0,0.00030328,7]
[364646156,1749177048308,-151.0,0.00030328,7]
[364646157,1749177048318,-279.90584,0.00030328,7]
[364646158,1749177048327,-152.375338,0.00030328,7]
[364646159,1749177048337,-151.0,0.00030328,7]
[364646160,1749177048348,-151.0,0.00030328,7]
[364646161,1749177048359,-151.0,0.00030328,7]
[364646162,1749177048368,-192.936671,0.00030328,7]
[364646163,1749177048378,-166.778531,0.00030328,7]
[364646164,1749177048388,-166.778531,0.00030328,7]
[364646165,1749177048398,-166.778531,0.00030328,7]
[364646166,1749177048408,-166.778531,0.00030328,7]
[364646167,1749177048417,-215.667741,0.00030328,7]
[364646168,1749177048427,-215.667741,0.00030328,7]
[364646169,1749177048437,-215.667741,0.00030328,7]
[364646170,1749177048447,-215.667741,0.00030328,7]
[364646171,1749177048457,-151.0,0.00030328,2]
[364646172,1749177048467,-389.471392,0.00030328,7]
[364646173,1749177048477,-389.471392,0.00030328,7]
[364646174,1749177048488,-151.0,0.00030328,7]
[364646175,1749177048498,-151.0,0.00030328,7]
[364646176,1749177048507,-11561.7,0.00030328,7]
[364646177,1749177048517,-161.577772,0.00030328,7]
[364646178,1749177048527,-161.577772,0.00030328,7]
[364646179,1749177048536,-161.577772,0.00030328,7]
[364646180,1749177048547,-161.577772,0.00030328,7]
[364646181,1749177048557,-151.0,0.00030328,7]
[364646182,1749177048567,-151.0,0.00030328,7]
[364646183,1749177048576,-165.43364,0.00030328,7]
[364646184,1749177048587,-151.0,0.00030328,7]
[364646185,1749177048596,-151.0,0.00030328,7]
[364646186,1749177048606,-151.0,0.00030328,7]
[364646187,1749177048616,-151.0,0.00030328,7]
[364646188,1749177048625,-1709.980474,0.00030328,7]
[364646189,1749177048635,-200.0,0.00030328,2]
[364646190,1749177048644,-1540.569532,0.00030328,7]
[364646191,1749177048655,-480.0,0.00030328,7]
[364646192,1749177048664,-480.0,0.00030328,7]
[364646193,1749177048674,-480.0,0.00030328,7]
[364646194,1749177048684,-480.0,0.00030328,7]
[364646195,1749177048694,-480.0,0.00030328,7]
[364646196,1749177048705,-480.0,0.00030328,7]
[364646197,1749177048717,-480.0,0.00030328,7]
[364646198,1749177048727,-480.0,0.00030328,7]
[364646199,1749177048738,-480.0,0.00030328,7]
[364646200,1749177048748,-480.0,0.00030328,7]
[364646201,1749177048757,-480.0,0.00030328,7]
[364646202,1749177048767,-480.0,0.00030328,7]
[364646203,1749177048776,-480.0,0.00030328,7]
[364646204,1749177048787,-458.49969352,0.00030328,7]
[364646205,1749177048797,-480.0,0.00030328,7]
[364646206,1749177048806,-480.0,0.00030328,7]
[364646207,1749177048816,-480.0,0.00030328,7]
[364646208,1749177048826,-480.0,0.00030328,7]
[364646209,1749177048835,-480.0,0.00030328,7]
[364646210,1749177048846,-480.0,0.00030328,7]
[364646211,1749177048856,-480.0,0.00030328,7]
[364646212,1749177048867,-480.0,0.00030328,7]
[364646213,1749177048878,-480.0,0.00030328,7]
[364646214,1749177048888,-480.0,0.00030328,7]
[364646215,1749177048899,-480.0,0.00030328,7]
[364646216,1749177048910,-698.27,0.00030328,7]
[364646217,1749177048920,-480.0,0.00030328,7]
[364646218,1749177048930,-480.0,0.00030328,7]
[364646219,1749177048940,-480.0,0.00030328,7]
[364646220,1749177048950,-480.0,0.00030328,7]
[364646221,1749177048960,-480.0,0.00030328,7]
[364646222,1749177048970,-151.0,0.00030328,7]
[364646223,1749177048979,-480.0,0.00030328,7]
[364646224,1749177048991,-480.0,0.00030328,7]
[364646225,1749177049001,-480.0,0.00030328,7]
[364646226,1749177049011,-151.0,0.00030328,7]
[364646227,1749177049021,-480.0,0.00030328,7]
[364646228,1749177049031,-480.0,0.00030328,7]
[364646229,1749177049041,-498.96670728,0.00030328,7]
[364646230,1749177049051,-892.61,0.00030328,7]
[364646231,1749177049062,-480.0,0.00030328,7]
[364646232,1749177049072,-480.0,0.00030328,7]
[364646233,1749177049082,-480.0,0.00030328,7]
[364646234,1749177049092,-480.0,0.00030328,7]
[364646235,1749177049102,-480.0,0.00030328,7]
[364646236,1749177049112,-743.58,0.00030328,7]
[364646237,1749177049122,-587.05638509,0.00030328,7]
[364646238,1749177049132,-480.0,0.00030328,7]
[364646239,1749177049143,-480.0,0.00030328,7]
[364646240,1749177049155,-540.21,0.00030328,7]
[364646241,1749177049165,-480.0,0.00030328,7]
[364646242,1749177049175,-480.0,0.00030328,7]
[364646243,1749177049185,-480.0,0.00030328,7]
[364646244,1749177049195,-480.0,0.00030328,7]
[364646245,1749177049205,-465.243341,0.00030328,7]
[364646246,1749177049215,-220.80201,0.00030328,7]
[364646247,1749177049226,-211.33821141,0.00030328,7]
[364646248,1749177049238,-669.98,0.00030328,7]
[364646249,1749177049248,-151.0,0.00030328,7]
[364646250,1749177049258,-480.0,0.00030328,7]
[364646251,1749177049268,-480.0,0.00030328,7]
[364646252,1749177049278,-480.0,0.00030328,7]
[364646253,1749177049288,-220.80201,0.00030328,7]
[364646254,1749177049298,-465.243341,0.00030328,7]
[364646255,1749177049308,-480.0,0.00030328,7]
[364646256,1749177049319,-480.0,0.00030328,7]
[364646257,1749177049329,-480.0,0.00030328,7]
[364646258,1749177049339,-480.0,0.00030328,7]
[364646259,1749177049348,-480.0,0.00030328,7]
[364646260,1749177049358,-480.0,0.00030328,7]
[364646261,1749177049368,-480.0,0.00030328,7]
[364646262,1749177049378,-480.0,0.00030328,7]
[364646263,1749177049388,-480.0,0.00030328,7]
[364646264,1749177049398,-486.14,0.00030328,7]
[364646265,1749177049407,-480.0,0.00030328,7]
[364646266,1749177049417,-480.0,0.00030328,7]
[364646267,1749177049427,-480.0,0.00030328,7]
[364646268,1749177049437,-480.0,0.00030328,7]
[364646269,1749177049447,-480.0,0.00030328,7]
[364646270,1749177049457,-480.0,0.00030328,7]
[364646271,1749177049467,-480.0,0.00030328,7]
[364646272,1749177049478,-480.0,0.00030328,7]
[364646273,1749177049488,-480.0,0.00030328,7]
[364646274,1749177049500,-480.0,0.00030328,7]
[364646275,1749177049511,-480.0,0.00030328,7]
[364646276,1749177049520,-480.0,0.00030328,7]
[364646277,1749177049531,-480.0,0.00030328,7]
[364646278,1749177049540,-480.0,0.00030328,7]
[364646279,1749177049550,-628.65,0.00030328,7]
[364646280,1749177049560,-740.06,0.00030328,7]
[364646281,1749177049569,-480.0,0.00030328,7]
[364646282,1749177049580,-823.59,0.00030328,7]
[364646283,1749177049590,-480.0,0.00030328,7]
[364646284,1749177049600,-480.0,0.00030328,7]
[364646285,1749177049609,-480.0,0.00030328,7]
[364646286,1749177049619,-480.0,0.00030328,7]
[364646287,1749177049629,-480.0,0.00030328,7]
[364646288,1749177049639,-480.0,0.00030328,7]
[364646289,1749177049649,-159.51622,0.00030328,7]
[364646290,1749177049659,-741.7,0.00030328,7]
[364646291,1749177049668,-480.0,0.00030328,7]
[364646292,1749177049679,-480.0,0.00030328,7]
[364646293,1749177049688,-480.0,0.00030328,7]
[364646294,1749177049698,-555.433917,0.00030328,7]
[364646295,1749177049711,-159.51622,0.00030328,7]
[364646296,1749177049721,-151.0,0.00030328,7]
[364646297,1749177049731,-555.433917,0.00030328,7]
[364646298,1749177049740,-480.0,0.00030328,7]
[364646299,1749177049750,-764.55,0.00030328,7]
[364646300,1749177049760,-1355.73,0.00030328,7]
[364646301,1749177049770,-480.0,0.00030328,7]
[364646302,1749177049780,-480.0,0.00030328,7]
[364646303,1749177049789,-480.0,0.00030328,7]
[364646304,1749177049800,-151.0,0.00030328,7]
[364646305,1749177049809,-480.0,0.00030328,7]
[364646306,1749177049819,-480.0,0.00030328,7]
[364646307,1749177049829,-480.0,0.00030328,7]
[364646308,1749177049839,-842.17,0.00030328,7]
[364646309,1749177049848,-973.04,0.00030328,7]
[364646310,1749177049858,-1581.47,0.00030328,7]
[364646311,1749177049868,-480.0,0.00030328,7]
[364646312,1749177049878,-908.31,0.00030328,7]
[364646313,1749177049888,-480.0,0.00030328,7]
[364646314,1749177049898,-1192.03,0.00030328,7]
[364646315,1749177049908,-480.0,0.00030328,7]
[364646316,1749177049917,-480.0,0.00030328,7]
[364646317,1749177049927,-807.49,0.00030328,7]
[364646318,1749177049937,-151.0,0.00030328,7]
[364646319,1749177049946,-1628.42,0.00030328,7]
[364646320,1749177049956,-480.0,0.00030328,7]
[364646321,1749177049966,-1394.32,0.00030328,7]
[364646322,1749177049977,-480.0,0.00030328,7]
[364646323,1749177049988,-487.04689667,0.00030328,7]
[364646324,1749177049998,-788.38,0.00030328,7]
[364646325,1749177050007,-668.64,0.00030328,7]
[364646326,1749177050017,-480.0,0.00030328,7]
[364646327,1749177050027,-480.0,0.00030328,7]
[364646328,1749177050036,-1405.2,0.00030328,7]
[364646329,1749177050046,-480.0,0.00030328,7]
[364646330,1749177050056,-1150.64,0.00030328,7]
[364646331,1749177050066,-480.0,0.00030328,7]
[364646332,1749177050075,-550.34555804,0.00030328,7]
[364646333,1749177050085,-480.0,0.00030328,7]
[364646334,1749177050094,-1227.56,0.00030328,7]
[364646335,1749177050104,-392.776538,0.00030328,7]
[364646336,1749177050114,-480.0,0.00030328,7]
[364646337,1749177050124,-480.0,0.00030328,7]
[364646338,1749177050134,-480.0,0.00030328,7]
[364646339,1749177050143,-811.08,0.00030328,7]
[364646340,1749177050154,-480.0,0.00030328,7]
[364646341,1749177050164,-451.09657841,0.00030328,7]
[364646342,1749177050174,-392.776538,0.00030328,7]
[364646343,1749177050184,-480.0,0.00030328,7]
[364646344,1749177050194,-914.11,0.00030328,7]
[364646345,1749177050203,-480.0,0.00030328,7]
[364646346,1749177050213,-480.0,0.00030328,7]
[364646347,1749177050223,-526.38,0.00030328,7]
[364646348,1749177050234,-10430.5,0.00030328,7]
[364646349,1749177050244,-480.0,0.00030328,7]
[364646350,1749177050487,-515.6,0.00030328,7]
[364646351,1749177050500,-568.01136989,0.00030328,7]
[364646352,1749177050510,-480.0,0.00030328,7]
[364646353,1749177050519,-480.0,0.00030328,7]
[364646354,1749177050528,-480.0,0.00030328,7]
[364646355,1749177050537,-1067.14,0.00030328,7]
[364646356,1749177050547,-474.9211908,0.00030328,7]
[364646357,1749177050556,-480.0,0.00030328,7]
[364646358,1749177050565,-480.0,0.00030328,7]
[364646359,1749177050575,-480.0,0.00030328,7]
[364646360,1749177050584,-480.0,0.00030328,7]
[364646361,1749177050594,-489.03950304,0.00030328,7]
[364646362,1749177050603,-480.0,0.00030328,7]
[364646363,1749177050612,-452.88,0.00030328,7]
[364646364,1749177050622,-480.0,0.00030328,7]
[364646365,1749177050632,-480.0,0.00030328,7]
[364646366,1749177050641,-625.14,0.00030328,7]
[364646367,1749177050652,-480.0,0.00030328,7]
[364646368,1749177050663,-648.33,0.00030328,7]
[364646369,1749177050674,-480.0,0.00030328,7]
[364646370,1749177050684,-480.0,0.00030328,7]
[364646371,1749177050693,-850.77,0.00030328,7]
[364646372,1749177050703,-791.29,0.00030328,7]
[364646373,1749177050716,-480.0,0.00030328,7]
[364646374,1749177050725,-480.0,0.00030328,7]
[364646375,1749177050734,-480.0,0.00030328,7]
[364646376,1749177050743,-480.0,0.00030328,7]
[364646377,1749177050756,-480.0,0.00030328,7]
[364646378,1749177050766,-806.48,0.00030328,7]
[364646379,1749177050775,-480.0,0.00030328,7]
[364646380,1749177050786,-480.0,0.00030328,7]
[364646381,1749177050796,-592.23,0.00030328,7]
[364646382,1749177050805,-480.0,0.00030328,7]
[364646383,1749177050817,-1254.2,0.00030328,7]
[364646384,1749177050827,-480.0,0.00030328,7]
[364646385,1749177050839,-480.0,0.00030328,7]
[364646386,1749177050849,-480.0,0.00030328,7]
[364646387,1749177050858,-986.48,0.00030328,7]
[364646388,1749177050867,-480.0,0.00030328,7]
[364646389,1749177050876,-817.61,0.00030328,7]
[364646390,1749177050885,-480.0,0.00030328,7]
[364646391,1749177050894,-1408.03,0.00030328,7]
[364646392,1749177050903,-151.0,0.00030328,7]
[364646393,1749177050913,-243.92404458,0.00030328,7]
[364646394,1749177050922,-480.0,0.00030328,7]
[364646395,1749177050931,-480.0,0.00030328,7]
[364646396,1749177050940,-480.0,0.00030328,7]
[364646397,1749177050949,-151.0,0.00030328,7]
[364646398,1749177050959,-480.0,0.00030328,7]
[364646399,1749177050968,-1052.92,0.00030328,7]
[364646400,1749177050978,-480.0,0.00030328,7]
[364646401,1749177050988,-480.0,0.00030328,7]
[364646402,1749177050997,-151.0,0.00030328,7]
[364646403,1749177051006,-518.71,0.00030328,7]
[364646404,1749177051016,-1251.23,0.00030328,7]
[364646405,1749177051026,-950.42,0.00030328,7]
[364646406,1749177051035,-480.0,0.00030328,7]
[364646407,1749177051045,-532.62,0.00030328,7]
[364646408,1749177051055,-480.0,0.00030328,7]
[364646409,1749177051065,-480.0,0.00030328,7]
[364646410,1749177051074,-480.0,0.00030328,7]
[364646411,1749177051084,-1131.09,0.00030328,7]
[364646412,1749177051093,-749.27,0.00030328,7]
[364646413,1749177051103,-151.0,0.00030328,7]
[364646414,1749177051112,-480.0,0.00030328,7]
[364646415,1749177051122,-480.0,0.00030328,7]
[364646416,1749177051131,-151.0,0.00030328,7]
[364646417,1749177051140,-480.0,0.00030328,7]
[364646418,1749177051150,-482.80318006,0.00030328,7]
[364646419,1749177051160,-480.0,0.00030328,7]
[364646420,1749177051169,-480.0,0.00030328,7]
[364646421,1749177051178,-740.83,0.00030328,7]
[364646422,1749177051188,-480.0,0.00030328,7]
[364646423,1749177051198,-1003.59,0.00030328,7]
[364646424,1749177051207,-480.0,0.00030328,7]
[364646425,1749177051217,-1215.68,0.00030328,7]
[364646426,1749177051227,-470.57877666,0.00030328,7]
[364646427,1749177051237,-1621.06,0.00030328,7]
[364646428,1749177051247,-751.53,0.00030328,7]
[364646429,1749177051257,-1558.92,0.00030328,7]
[364646430,1749177051266,-480.0,0.00030328,7]
[364646431,1749177051276,-636.31,0.00030328,7]
[364646432,1749177051285,-413.21713935,0.00030328,7]
[364646433,1749177051295,-480.0,0.00030328,7]
[364646434,1749177051304,-600.63,0.00030328,7]
[364646435,1749177051314,-884.49,0.00030328,7]
[364646436,1749177051323,-1047.77,0.00030328,7]
[364646437,1749177051333,-480.0,0.00030328,7]
[364646438,1749177051343,-609.30085438,0.00030328,7]
[364646439,1749177051352,-151.0,0.00030328,7]
[364646440,1749177051362,-542.781653,0.00030328,7]
[364646441,1749177051371,-480.0,0.00030328,7]
[364646442,1749177051381,-484.69,0.00030328,7]
[364646443,1749177051391,-480.0,0.00030328,7]
[364646444,1749177051400,-542.781653,0.00030328,7]
[364646445,1749177051410,-491.91,0.00030328,7]
[364646446,1749177051419,-509.58,0.00030328,7]
[364646447,1749177051429,-1414.084909,0.00030328,7]
[364646448,1749177051439,-286.925208,0.00030328,7]
[364646449,1749177051449,-395.638078,0.00030328,7]
[364646450,1749177051459,-1414.084909,0.00030328,7]
[364646451,1749177051470,-794.36,0.00030328,7]
[364646452,1749177051479,-286.925208,0.00030328,7]
[364646453,1749177051490,-395.638078,0.00030328,7]
[364646454,1749177051499,-480.0,0.00030328,7]
[364646455,1749177051508,-523.22,0.00030328,7]
[364646456,1749177051518,-480.0,0.00030328,7]
[364646457,1749177051528,-480.0,0.00030328,7]
[364646458,1749177051537,-1149.76,0.00030328,7]
[364646459,1749177051547,-487.59230166,0.00030328,7]
[364646460,1749177051556,-172.530498,0.00030328,7]
[364646461,1749177051565,-480.0,0.00030328,7]
[364646462,1749177051575,-480.0,0.00030328,7]
[364646463,1749177051584,-1043.18,0.00030328,7]
[364646464,1749177051594,-151.0,0.00030328,7]
[364646465,1749177051603,-480.0,0.00030328,7]
[364646466,1749177051612,-762.76,0.00030328,7]
[364646467,1749177051622,-151.0,0.00030328,7]
[364646468,1749177051631,-500.0,0.00030328,2]
[364646469,1749177051640,-500.0,0.00030328,7]
[364646470,1749177051651,-1740.95,0.00030328,7]
[364646471,1749177051660,-463.46262265,0.00030328,2]
[364646472,1749177051670,-500.0,0.00030328,7]
[364646473,1749177051679,-150.0,0.00030328,7]
[364646474,1749177051688,-480.0,0.00030328,7]
[364646475,1749177051698,-432.0,0.00030328,2]
[364646476,1749177051709,-660.68,0.00030328,7]
[364646477,1749177051719,-1178.87,0.00030328,7]
[364646478,1749177051728,-2073.0,0.00030328,7]
[364646479,1749177051738,-495.27808491,0.00030328,7]
[364646480,1749177051747,-500.0,0.00030328,7]
[364646481,1749177051757,-480.0,0.00030328,7]
[364646482,1749177051767,-868.9,0.00030328,7]
[364646483,1749177051776,-500.0,0.00030328,7]
[364646484,1749177051787,-480.0,0.00030328,7]
[364646485,1749177051796,-871.19893,0.00030328,2]
[364646486,1749177051806,-150.0,0.00030328,7]
[364646487,1749177051816,-1176.51,0.00030328,7]
[364646488,1749177051825,-150.0,0.00030328,7]
[364646489,1749177051835,-1788.91,0.00030328,7]
[364646490,1749177051844,-3743.16,0.00030328,7]
[364646491,1749177051853,-712.4,0.00030328,7]
[364646492,1749177051862,-1154.63,0.00030328,7]
[364646493,1749177051871,-1978.18,0.00030328,7]
[364646494,1749177051881,-742.64,0.00030328,7]
[364646495,1749177051891,-3446.9,0.00030328,7]
[364646496,1749177051900,-500.0,0.00030328,7]
[364646497,1749177051909,-721.61,0.00030328,7]
[364646498,1749177051919,-1704.64,0.00030328,7]
[364646499,1749177051927,-3182.65,0.00030328,7]
[364646500,1749177051937,-958.23,0.00030328,7]
[364646501,1749177051946,-480.0,0.00030328,7]
[364646502,1749177051956,-480.0,0.00030328,7]